bitfinex/quotes_ETHUSD_20241101
["timestamp","ask_amount","ask_price","bid_price","bid_amount"]
[1730478785515,6.9647,2522.3,2521.8,3.96534]
[1730478785831,1.67891473,2522.5,2521.7,3.96557]
[1730478785832,5.64335473,2522.5,2521.7,3.96557]
[1730478786041,3.0,2522.3,2521.9,3.9651]
[1730478786803,3.0,2522.3,2521.7,3.96551]
[1730478786804,6.96473,2522.3,2521.7,3.96551]
[1730478787000,3.96482,2522.2,2521.8,3.96535]
[1730478787299,3.96408,2522.7,2522.2,3.96471]
[1730478787623,3.96429,2522.6,2522.1,3.96493]
[1730478788218,3.96429,2522.6,2522.0,5.10071]
[1730478788421,10.27530554,2522.8,2522.3,3.96455]
[1730478788719,0.82534207,2523.0,2522.0,1.1357]
[1730478789068,2.06523672,2523.3,2521.8,5.23298357]
[1730478789069,4.78843207,2523.3,2522.9,3.96367]
[1730478789217,1.0934,2523.4,2522.9,3.96367]
[1730478789541,3.96301,2523.4,2522.9,3.96367]
[1730478789717,3.96301,2523.4,2522.9,7.92729]
[1730478789919,3.96277,2523.5,2523.0,3.96344]
[1730478790124,3.96297,2523.4,2523.0,3.96344]
[1730478790433,3.96297,2523.4,2522.9,3.96368]
[1730478790622,3.96297,2523.4,2523.0,3.96351]
[1730478790824,3.0,2523.4,2523.0,3.96351]
[1730478791023,3.0,2523.4,2523.1,3.96335]
[1730478791353,0.87554947,2523.9,2523.1,3.96335]
[1730478791354,0.82534207,2524.0,2523.2,1.1231]
[1730478791555,3.96244,2523.7,2523.3,3.96295]
[1730478792142,3.96244,2523.7,2523.2,3.96315]
[1730478792334,3.9626,2523.6,2523.2,3.96315]
[1730478792532,3.96244,2523.7,2523.2,7.92627]
[1730478793073,1.9695201,2524.1,2523.5,3.96274]
[1730478793368,1.9695201,2524.1,2523.2,0.908577]
[1730478793565,1.9695201,2524.1,2523.3,3.96299]
[1730478793566,3.96235,2523.8,2523.3,3.96299]
[1730478793857,3.96235,2523.8,2523.3,3.96298]
[1730478794152,3.96235,2523.8,2523.2,0.908577]
[1730478794153,3.9626,2523.6,2523.2,3.96319]
[1730478794353,3.96243,2523.7,2523.2,3.96319]
[1730478794517,0.8268201,2523.9,2523.4,3.9629]
[1730478794719,5.20221015,2524.0,2523.4,3.9629]
[1730478794720,3.96198,2524.0,2523.5,5.04816]
[1730478794934,3.9622,2523.9,2523.5,1.0855]
[1730478795352,4.96128302,2523.9,2523.2,5.04861]
[1730478795532,6.96233,2523.8,2523.2,1.0855]
[1730478795737,3.0,2523.8,2523.2,1.0855]
[1730478795935,3.9626,2523.6,2523.2,1.0855]
[1730478796261,7.7891301,2523.8,2523.2,5.04862]
[1730478796262,3.96255,2523.7,2523.2,5.04862]
[1730478796568,1.6536402,2524.0,2523.2,5.04862]
[1730478796569,0.8268201,2524.0,2523.2,1.98669]
[1730478796772,7.7886301,2524.1,2523.6,7.92498]
[1730478797066,7.7887001,2524.1,2523.2,1.0855]
[1730478797234,3.96232,2523.8,2523.3,3.96297]
[1730478797439,3.96232,2523.8,2523.3,3.96296]
[1730478797440,3.96228,2523.8,2523.3,3.96296]
[1730478797941,3.96228,2523.8,2523.2,3.9632]
[1730478797942,3.9625,2523.7,2523.2,3.9632]
[1730478798134,3.9625,2523.7,2523.1,1.1166]
[1730478798135,3.96274,2523.6,2523.1,1.1166]
[1730478798337,0.99045001,2523.7,2523.2,3.96321]
[1730478798561,0.99045001,2523.7,2523.3,3.96299]
[1730478798858,3.96266,2523.6,2523.1,5.0799]
[1730478799247,0.99045001,2523.7,2523.2,3.96321]
[1730478799547,6.9624,2523.8,2523.2,3.96322]
[1730478799750,1.24023015,2524.1,2523.6,3.96257]
[1730478799751,0.8268201,2524.1,2523.6,3.96257]
[1730478800081,2.37113015,2524.2,2523.1,1.1166]
[1730478800082,1.9577201,2524.2,2523.1,5.82095866]
[1730478800238,1.9577201,2524.2,2523.0,3.96352]
[1730478800239,0.8268201,2524.5,2523.8,1.0899]
[1730478800423,4.7877701,2524.7,2524.2,3.96155]
[1730478800776,2.7805402,2524.9,2524.5,3.96117]
[1730478800777,1.1269,2524.9,2524.5,3.96117]
[1730478801084,5.20057015,2525.1,2524.7,3.96086]
[1730478801085,0.8268201,2525.1,2524.7,3.96086]
[1730478801225,5.08707,2525.2,2524.7,3.96077]
[1730478801424,3.96024,2525.1,2524.6,3.96101]
[1730478801724,5.08707,2525.2,2524.7,3.96084]
[1730478801929,3.96025,2525.1,2524.7,3.96084]
[1730478802152,5.08707,2525.2,2524.7,3.96084]
[1730478802665,3.95993,2525.3,2524.7,3.96078]
[1730478802863,3.95993,2525.3,2524.1,3.9618]
[1730478802864,5.8683401,2525.5,2525.0,3.9603]
[1730478803026,0.8268201,2525.7,2525.3,3.95982]
[1730478803233,3.95918,2525.8,2525.3,3.95982]
[1730478803432,4.9211964,2525.8,2525.3,7.91967]
[1730478803728,4.9211964,2525.8,2525.3,3.95982]
[1730478803937,3.95909,2525.9,2525.3,3.95981]
[1730478804245,1.0947,2526.1,2525.2,3.95995]
[1730478804441,3.95937,2525.7,2525.2,3.95995]
[1730478804658,3.0,2525.9,2525.4,3.95961]
[1730478805039,3.0,2525.9,2525.5,4.03874117]
[1730478805233,3.95855,2526.2,2525.7,3.95925]
[1730478805567,3.95858,2526.2,2525.7,3.95922]
[1730478805928,1.0881,2526.4,2525.9,3.9589]
[1730478805929,3.9583,2526.4,2525.9,3.9589]
[1730478806163,3.95767,2526.8,2526.0,0.07917276]
[1730478806385,3.95767,2526.8,2526.3,3.95824]
[1730478807034,0.57750795,2527.3,2526.4,4.03732887]
[1730478807035,3.95701,2527.2,2526.4,4.03732887]
[1730478807176,3.95696,2527.2,2526.6,3.95773]
[1730478807479,3.95696,2527.2,2526.6,3.95778]
[1730478807480,3.95703,2527.2,2526.6,3.95778]
[1730478807686,3.95703,2527.2,2526.5,5.00884]
[1730478807974,3.95672,2527.4,2526.8,3.95747]
[1730478808183,3.95666,2527.4,2526.8,3.95747]
[1730478808472,3.95711,2527.1,2526.5,5.00892]
[1730478808676,3.95752,2526.9,2526.5,1.0509]
[1730478808879,3.95752,2526.9,2526.2,5.02361]
[1730478809181,5.69327782,2527.1,2526.4,3.95808]
[1730478809182,3.95734,2527.0,2526.4,3.95808]
[1730478809495,0.502156,2527.4,2526.6,3.95787]
[1730478809496,3.95704,2527.2,2526.6,3.95787]
[1730478809770,3.95719,2527.1,2526.6,3.95787]
[1730478809980,3.95679,2527.3,2526.6,3.95787]
[1730478809981,3.95704,2527.2,2526.6,3.95787]
[1730478810273,3.95734,2527.0,2526.4,3.9581]
[1730478810435,3.9572,2527.1,2526.5,3.95794]
[1730478810984,1.1534,2527.9,2527.0,3.95715]
[1730478811187,1.1534,2527.9,2527.2,3.95692]
[1730478811350,3.95611,2527.8,2527.2,3.95692]
[1730478811549,3.95628,2527.7,2527.2,3.95692]
[1730478811790,7.91225,2527.8,2527.2,3.95692]
[1730478811945,3.95619,2527.7,2527.2,3.95687]
[1730478812478,3.95633,2527.6,2527.1,1.0988]
[1730478812788,0.395633,2527.6,2527.1,5.0558]
[1730478812959,3.95649,2527.5,2527.1,1.0988]
[1730478813167,3.95664,2527.4,2526.9,3.9574]
[1730478813477,3.95684,2527.3,2526.8,1.0988]
[1730478813649,1.141,2527.3,2526.5,1.0515]
[1730478813853,3.95742,2526.9,2526.5,1.0515]
[1730478814046,3.95742,2526.9,2526.2,3.95843]
[1730478814291,3.95829,2526.4,2525.8,8.96955]
[1730478814535,3.95838,2526.3,2525.8,5.01052]
[1730478814646,3.95835,2526.3,2525.8,1.0515]
[1730478814850,3.95862,2526.2,2525.8,1.0515]
[1730478815289,4.654482,2526.2,2525.5,3.95952]
[1730478815601,6.95742,2526.9,2525.8,3.95914]
[1730478815898,3.95721,2527.1,2526.6,3.9578]
[1730478816062,3.95688,2527.3,2526.7,3.9576]
[1730478816248,1.0607,2527.6,2526.8,0.50993495]
[1730478816249,3.95654,2527.5,2526.8,0.50993495]
[1730478816454,1.0607,2527.6,2526.7,3.9576]
[1730478816455,3.95697,2527.2,2526.7,3.9576]
[1730478817604,3.95689,2527.3,2526.7,3.9576]
[1730478817754,3.95697,2527.2,2526.6,1.0626]
[1730478818065,3.95741,2527.0,2526.6,1.0626]
[1730478818247,7.91441,2527.1,2526.6,1.0626]
[1730478818452,3.95728,2527.0,2526.6,1.0626]
[1730478818703,3.95719,2527.1,2526.6,5.02039]
[1730478818985,3.95719,2527.1,2526.6,1.960431]
[1730478819189,3.95719,2527.1,2526.6,5.99734045]
[1730478819356,3.95689,2527.3,2526.7,3.95764]
[1730478819551,3.95694,2527.2,2526.7,3.95764]
[1730478819752,3.95733,2527.0,2526.6,1.0626]
[1730478819954,3.95738,2527.0,2526.6,1.0626]
[1730478820281,1.0706,2526.9,2526.3,1.1422]
[1730478820601,7.9157,2526.7,2526.1,3.95867]
[1730478820760,1.0706,2526.9,2526.0,1.1422]
[1730478820761,3.0,2526.8,2526.2,0.07916283]
[1730478820950,3.95782,2526.7,2526.2,3.95851]
[1730478821151,3.0,2526.8,2526.4,3.95815]
[1730478821382,3.0,2526.8,2526.4,3.9582]
[1730478821554,3.95798,2526.6,2526.0,5.10092]
[1730478821758,3.95789,2526.6,2526.1,3.95866]
[1730478821954,3.95806,2526.5,2526.0,1.1422]
[1730478822361,3.95793,2526.6,2526.1,3.95857]
[1730478822761,3.95793,2526.6,2526.0,1.1422]
[1730478822762,3.95845,2526.3,2526.0,1.1422]
[1730478822957,3.95812,2526.5,2526.0,1.1422]
[1730478823200,3.95825,2526.4,2526.0,1.1422]
[1730478823709,4.0706,2526.6,2526.0,1.1422]
[1730478823710,3.95846,2526.3,2526.0,1.1422]
[1730478823860,4.0706,2526.6,2525.6,1.1422]
[1730478824061,3.95875,2526.1,2525.6,1.1422]
[1730478824265,3.95882,2526.0,2525.6,1.1422]
[1730478824466,3.9593,2525.7,2525.3,1.056]
[1730478824762,3.95961,2525.5,2525.3,1.056]
[1730478824978,3.95961,2525.5,2525.0,1.056]
[1730478825192,3.9594,2525.7,2525.2,3.96006]
[1730478825838,3.95908,2525.9,2525.2,3.96001]
[1730478826006,3.95915,2525.8,2525.3,3.95982]
[1730478826389,3.95908,2525.9,2525.3,3.95984]
[1730478826603,3.95907,2525.9,2525.4,3.95976]
[1730478826910,3.95836,2526.3,2524.6,23.731]
[1730478826911,3.95805,2526.5,2525.6,1.131]
[1730478827122,3.95812,2526.5,2525.9,3.95883]
[1730478827287,3.95835,2526.3,2525.8,3.95912]
[1730478827491,3.95851,2526.2,2525.6,5.09035]
[1730478827692,3.95851,2526.2,2525.6,5.85858886]
[1730478827876,3.95876,2526.1,2525.6,5.85858886]
[1730478828410,3.95851,2526.2,2525.6,5.85858886]
[1730478828598,3.9588,2526.1,2525.6,9.81794886]
[1730478829002,3.95832,2526.4,2525.6,1.89923886]
[1730478829312,3.9586,2526.2,2525.7,3.95929]
[1730478829653,3.9586,2526.2,2525.6,5.85863886]
[1730478829654,3.9589,2526.0,2525.6,1.131]
[1730478830135,3.0,2526.5,2525.6,1.131]
[1730478830300,3.95889,2526.0,2525.6,1.131]
[1730478830503,3.959,2525.9,2525.6,1.131]
[1730478831140,3.95875,2526.1,2525.6,5.09045]
[1730478831303,3.95893,2526.0,2525.6,1.131]
[1730478831634,3.95937,2525.7,2525.3,1.1292]
[1730478832140,3.9593,2525.7,2525.3,1.1292]
[1730478832327,3.9593,2525.7,2525.3,5.08911]
[1730478832639,3.95898,2525.9,2525.5,3.9596]
[1730478832798,3.95884,2526.0,2525.5,3.9596]
[1730478832999,3.95935,2525.7,2525.3,1.1292]
[1730478833199,7.91874,2525.7,2525.3,1.1292]
[1730478833738,3.95935,2525.7,2525.3,1.1292]
[1730478833910,3.95973,2525.5,2525.0,3.96037]
[1730478834245,3.95917,2525.8,2525.3,3.95985]
[1730478834536,3.95923,2525.8,2525.3,3.95983]
[1730478834697,3.959,2525.9,2525.5,5.02839]
[1730478834904,6.9589,2526.0,2525.5,5.02839]
[1730478835099,3.9589,2526.0,2525.5,8.98785]
[1730478835400,3.9589,2526.0,2525.5,8.98784]
[1730478835605,3.95853,2526.2,2525.6,3.95937]
[1730478835830,3.95853,2526.2,2525.7,3.95922]
[1730478836032,1.1078,2526.5,2525.7,0.07917826]
[1730478836216,3.95752,2526.9,2526.1,1.0737]
[1730478836547,3.95721,2527.1,2526.5,3.95795]
[1730478836752,3.95764,2526.8,2526.3,3.95827]
[1730478837042,3.95764,2526.8,2526.3,3.95829]
[1730478837043,3.95773,2526.7,2526.3,3.95829]
[1730478837278,0.506501,2527.1,2526.1,5.03235]
[1730478837279,7.91597,2526.6,2526.1,5.03235]
[1730478837651,7.91597,2526.6,2526.1,5.03228]
[1730478837652,3.95798,2526.6,2526.1,5.03228]
[1730478837847,7.91596,2526.6,2526.1,5.03228]
[1730478838055,3.95798,2526.6,2526.1,5.03228]
[1730478838779,3.95813,2526.5,2526.1,5.03235]
[1730478839580,3.95798,2526.6,2526.1,1.0737]
[1730478839761,3.95811,2526.5,2526.1,1.0737]
[1730478840081,3.95811,2526.5,2526.1,5.03235]
[1730478840578,3.95774,2526.7,2526.2,3.95848]
[1730478841079,3.0,2526.9,2526.4,3.95809]
[1730478841238,3.0,2526.9,2525.7,1.0513]
[1730478841239,1.1263,2526.7,2525.7,1.0513]
[1730478841444,3.95813,2526.5,2525.9,3.95882]
[1730478841675,6.95797,2526.6,2526.0,0.07916769]
[1730478841840,3.95753,2526.9,2526.3,5.04771]
[1730478842043,0.506501,2527.1,2526.6,3.95778]
[1730478842044,3.95721,2527.1,2526.6,3.95778]
[1730478842478,3.95721,2527.1,2526.6,3.95781]
[1730478842690,3.95721,2527.1,2526.7,3.95769]
[1730478842905,3.95721,2527.1,2526.6,3.95781]
[1730478842906,3.95718,2527.1,2526.6,3.95779]
[1730478843348,3.95697,2527.2,2526.7,3.95771]
[1730478843547,7.91351,2527.4,2526.8,3.95748]
[1730478843785,3.95695,2527.2,2526.8,1.1021]
[1730478844245,3.0,2527.1,2526.8,1.1021]
[1730478844680,6.95711,2527.1,2526.8,1.1021]
[1730478845082,3.0,2527.1,2526.8,1.1021]
[1730478845313,3.95696,2527.2,2526.8,1.64845058]
[1730478845708,3.95676,2527.4,2526.8,5.68507553]
[1730478845709,3.95686,2527.3,2526.8,5.68507553]
[1730478846225,3.95686,2527.3,2526.9,3.95739]
[1730478846615,3.95711,2527.1,2526.8,1.64845058]
[1730478846908,3.95695,2527.2,2526.8,5.05966]
[1730478847112,3.87433036,2527.6,2526.9,3.9574]
[1730478847326,3.87433036,2527.6,2527.0,3.95717]
[1730478847327,3.95649,2527.5,2527.0,3.95717]
[1730478847618,3.95649,2527.5,2527.1,4.748528]
[1730478847782,3.95649,2527.5,2527.1,0.791458]
[1730478847986,3.95664,2527.4,2527.0,3.95717]
[1730478848319,3.95649,2527.5,2527.0,3.95717]
[1730478848540,3.95649,2527.5,2527.0,3.95723]
[1730478849048,3.95649,2527.5,2527.1,3.95706]
[1730478849198,3.95649,2527.5,2526.8,5.05954]
[1730478849505,3.95632,2527.6,2527.0,3.95725]
[1730478849708,3.95617,2527.7,2527.3,3.95677]
[1730478849928,3.95591,2527.9,2527.4,1.1292]
[1730478850110,3.95591,2527.9,2527.5,3.95643]
[1730478850323,5.19589015,2528.1,2527.5,3.95643]
[1730478850324,1.34023015,2528.2,2527.6,0.07912134]
[1730478850539,0.1,2528.2,2527.9,1.0618]
[1730478850911,0.1,2528.2,2528.0,3.95567]
[1730478851341,0.1,2528.2,2527.6,3.95623]
[1730478851498,3.956,2527.9,2527.3,19.77]
[1730478851704,3.9569,2527.3,2526.9,1.0618]
[1730478851946,3.9569,2527.3,2526.3,8.65176494]
[1730478851947,3.95733,2527.0,2526.6,1.0579]
[1730478852099,3.95741,2526.9,2526.6,1.0579]
[1730478852299,3.95733,2527.0,2526.6,1.0579]
[1730478852497,3.95733,2527.0,2526.6,5.01577]
[1730478852813,3.0,2527.4,2526.6,1.0579]
[1730478852814,3.9575,2526.9,2526.6,1.0579]
[1730478853017,6.95665,2527.4,2526.6,5.01578]
[1730478853018,3.95717,2527.1,2526.6,5.01578]
[1730478853418,3.95717,2527.1,2526.6,1.0579]
[1730478853611,3.95737,2527.0,2526.6,1.0579]
[1730478853810,1.1053,2527.5,2526.7,0.07914516]
[1730478854015,3.95701,2527.2,2526.7,4.03675516]
[1730478854217,3.95701,2527.2,2526.7,7.99435213]
[1730478854416,3.95701,2527.2,2526.7,3.9576]
[1730478854747,3.95701,2527.2,2526.8,3.95755]
[1730478854901,3.95674,2527.4,2526.9,4.03648205]
[1730478855238,3.95673,2527.4,2526.9,7.99381205]
[1730478855538,3.95642,2527.6,2527.1,1.135]
[1730478855848,5.19598015,2528.0,2527.1,1.135]
[1730478856016,3.95651,2527.5,2527.1,5.09202]
[1730478856216,3.95651,2527.5,2527.1,1.644202]
[1730478856719,2.7184402,2528.1,2527.2,0.07913115]
[1730478856720,3.95612,2527.8,2527.2,0.07913115]
[1730478856948,3.9558,2528.0,2527.2,3.9569]
[1730478857185,0.82554534,2528.0,2527.3,3.95679]
[1730478857311,3.95563,2528.1,2527.6,3.9562]
[1730478857634,3.95563,2528.1,2527.7,3.95614]
[1730478858040,3.95582,2528.0,2527.5,5.03494]
[1730478858341,3.95618,2527.7,2527.2,5.06842]
[1730478858750,3.95601,2527.8,2527.3,3.95679]
[1730478858908,3.95618,2527.7,2527.2,5.06844]
[1730478859108,3.95658,2527.5,2527.2,1.1115]
[1730478859344,5.29563015,2528.2,2527.2,1.1115]
[1730478859345,1.6536402,2528.4,2528.1,1.0484]
[1730478859529,1.6536402,2528.4,2528.0,3.95569]
[1730478859530,0.1232417,2529.0,2528.8,5.00283]
[1730478859765,0.1232417,2529.0,2528.9,0.07907803]
[1730478860106,0.1232417,2529.0,2528.9,4.03335803]
[1730478860538,0.1232417,2529.0,2528.9,0.07907803]
[1730478860913,0.1232417,2529.0,2528.9,4.03335315]
[1730478861321,0.1232417,2529.0,2528.9,3.95428]
[1730478861530,0.1232417,2529.0,2528.9,4.03335318]
[1730478861742,0.1232417,2529.0,2528.9,3.95428]
[1730478862828,0.1232417,2529.0,2528.8,8.95726]
[1730478863026,0.1232417,2529.0,2528.9,3.95428]
[1730478863821,0.1232417,2529.0,2528.9,4.03335309]
[1730478864137,0.1232417,2529.0,2528.9,3.95428]
[1730478865458,0.1232417,2529.0,2528.9,4.03336062]
[1730478865830,0.1232417,2529.0,2528.9,3.95428]
[1730478867118,0.1232417,2529.0,2528.9,8.63418]
[1730478867574,3.95237,2530.2,2529.7,3.953]
[1730478867890,1.159,2530.6,2529.1,1.1474]
[1730478867891,3.9526,2530.0,2529.3,3.95355]
[1730478868049,1.0727,2529.9,2529.1,1.1474]
[1730478868400,3.9539,2529.2,2528.6,3.95475]
[1730478868595,3.9539,2529.2,2528.1,1.1474]
[1730478868596,3.95468,2528.7,2528.1,1.1474]
[1730478868746,3.95468,2528.7,2528.2,3.95538]
[1730478869071,3.9544,2528.9,2528.2,3.95538]
[1730478869278,3.95454,2528.8,2528.3,3.95513]
[1730478869788,3.95413,2529.0,2528.5,3.9548]
[1730478870091,6.95413,2529.0,2528.5,3.95491]
[1730478870247,3.0,2529.0,2528.6,3.95471]
[1730478870587,3.95443,2528.9,2528.4,3.95502]
[1730478870748,0.695443,2528.9,2528.2,3.95528]
[1730478870965,3.95478,2528.6,2528.1,5.10286]
[1730478871165,3.95525,2528.3,2527.8,9.02989]
[1730478871365,3.95499,2528.5,2528.0,3.95559]
[1730478871597,4.1522,2528.7,2528.3,3.95515]
[1730478871997,4.1522,2528.7,2528.1,7.91095]
[1730478871998,8.10691,2528.7,2528.1,7.91095]
[1730478872211,1.1522,2529.1,2528.3,3.9551]
[1730478872405,3.95425,2529.0,2528.4,3.95499]
[1730478872700,3.0,2528.9,2528.5,3.95491]
[1730478872885,3.0,2529.0,2528.6,3.9546]
[1730478873087,1.1277,2529.4,2528.6,4.03373839]
[1730478873297,3.9542,2529.0,2528.4,8.95721]
[1730478873494,7.90845,2529.0,2528.5,3.95487]
[1730478873670,3.95392,2529.2,2528.7,3.95458]
[1730478874007,3.95369,2529.3,2528.8,4.03344183]
[1730478874213,3.95331,2529.6,2529.1,3.95396]
[1730478874365,3.9533,2529.6,2529.1,3.95384]
[1730478874732,3.9533,2529.6,2529.1,7.90772]
[1730478874910,5.08078,2529.7,2529.2,3.95373]
[1730478875068,1.1277,2529.7,2529.3,3.95357]
[1730478875369,1.1277,2529.7,2529.4,3.9535]
[1730478875562,9.04879,2530.0,2529.4,7.90692]
[1730478875820,5.09607,2530.0,2529.4,3.95342]
[1730478876019,5.09607,2530.0,2529.5,3.9533]
[1730478876379,1.1434,2530.0,2529.4,3.95339]
[1730478876608,1.1434,2530.0,2529.5,3.95334]
[1730478877110,8.09598,2530.0,2529.5,3.95334]
[1730478877301,4.1434,2530.0,2529.6,3.95316]
[1730478877508,4.1434,2530.0,2529.5,3.95326]
[1730478877686,4.1434,2530.0,2529.5,3.95334]
[1730478877687,3.95281,2529.9,2529.5,3.95334]
[1730478878106,3.95281,2529.9,2529.4,1.1076]
[1730478878411,3.95275,2529.9,2529.2,3.95372]
[1730478878629,3.95345,2529.5,2529.1,3.95392]
[1730478878788,3.95353,2529.4,2528.9,7.90837]
[1730478878983,3.95353,2529.4,2528.9,3.9542]
[1730478879291,3.953,2529.8,2528.8,3.95442]
[1730478879621,3.953,2529.8,2528.7,1.0729]
[1730478879622,3.95379,2529.3,2528.7,1.0729]
[1730478879826,3.95389,2529.2,2528.7,5.02748]
[1730478880123,1.0773,2528.9,2528.3,3.95513]
[1730478880498,5.03159,2528.9,2528.4,4.03407967]
[1730478880812,1.0773,2528.9,2528.5,3.95484]
[1730478881126,6.95406,2529.1,2528.6,4.03377965]
[1730478881415,3.0,2529.1,2528.7,3.95457]
[1730478881719,6.95399,2529.1,2528.6,3.95466]
[1730478882421,3.0,2529.1,2528.7,3.95458]
[1730478882593,8.96402,2529.2,2528.7,3.95458]
[1730478882919,8.96403,2529.2,2528.7,3.95458]
[1730478883126,5.0101,2529.2,2528.6,0.07908499]
[1730478883415,3.95421,2529.0,2528.6,0.07908499]
[1730478883626,1.85721,2529.2,2528.6,0.07908499]
[1730478883936,1.85721,2529.2,2528.1,5.08874]
[1730478883937,3.95487,2528.6,2528.1,5.08874]
[1730478884087,3.95462,2528.7,2528.2,3.9553]
[1730478885223,1.85721,2529.2,2528.1,1.1333]
[1730478885422,4.0479,2528.9,2528.1,1.1333]
[1730478885625,3.95503,2528.5,2528.0,3.95567]
[1730478885919,3.95503,2528.5,2527.9,3.95572]
[1730478885920,3.95509,2528.4,2527.9,3.95572]
[1730478886131,3.95534,2528.3,2527.8,5.01549]
[1730478886291,3.95504,2528.5,2527.9,3.95578]
[1730478886507,3.95504,2528.5,2528.0,3.9556]
[1730478886814,1.0479,2528.9,2528.5,3.95486]
[1730478887015,3.95444,2528.8,2528.3,5.02277]
[1730478887194,3.95444,2528.8,2528.3,5.02274]
[1730478887398,1.0479,2528.9,2528.3,5.02274]
[1730478887633,3.0,2529.1,2528.6,3.95467]
[1730478887790,6.95406,2529.1,2528.6,3.95467]
[1730478888331,3.95431,2528.9,2528.5,3.95489]
[1730478888694,3.95426,2529.0,2528.3,5.02273]
[1730478888915,3.95452,2528.8,2528.3,5.02273]
[1730478889130,3.95468,2528.7,2528.2,4.03446346]
[1730478889427,3.95468,2528.7,2528.3,3.95521]
[1730478889826,3.95441,2528.9,2528.2,0.07909346]
[1730478890005,3.95461,2528.7,2528.3,3.95522]
[1730478890186,7.90931,2528.7,2528.2,4.03445346]
[1730478890628,3.95461,2528.7,2528.2,4.03445346]
[1730478891040,3.95461,2528.7,2528.2,3.95536]
[1730478891192,3.95461,2528.7,2528.2,4.03445877]
[1730478891394,7.90929,2528.7,2528.2,3.95536]
[1730478891925,3.0,2528.9,2528.2,3.95535]
[1730478892238,7.90937,2528.7,2528.2,3.95535]
[1730478892400,3.95442,2528.9,2528.3,0.07909876]
[1730478892740,6.95407,2529.1,2528.7,3.95453]
[1730478892908,3.95413,2529.0,2528.5,3.95487]
[1730478893107,3.95413,2529.0,2528.5,3.95491]
[1730478893423,3.95413,2529.0,2528.6,3.95474]
[1730478893639,7.90836,2529.0,2528.3,3.95509]
[1730478893815,3.9543,2528.9,2528.5,7.9098]
[1730478894011,3.9543,2528.9,2528.5,3.9549]
[1730478894212,3.95413,2529.0,2528.5,3.95479]
[1730478894522,3.0,2529.1,2528.1,1.0925]
[1730478894719,3.95478,2528.6,2528.1,5.04789]
[1730478894943,3.95478,2528.6,2528.1,9.00334]
[1730478895143,3.95504,2528.5,2528.0,3.95569]
[1730478895448,5.05808,2528.4,2527.9,3.95573]
[1730478895847,1.1463,2528.8,2528.3,3.95513]
[1730478896148,1.1463,2528.8,2528.4,3.95506]
[1730478896350,1.1463,2528.8,2528.2,3.95538]
[1730478896351,3.95463,2528.7,2528.2,3.95538]
[1730478896649,3.95467,2528.7,2528.2,3.95538]
[1730478896820,1.1463,2528.8,2527.8,1.1123]
[1730478897014,3.95486,2528.6,2528.1,3.95546]
[1730478897335,3.955,2528.5,2528.1,4.03456257]
[1730478897650,3.955,2528.5,2528.1,3.95546]
[1730478899556,1.956348,2528.8,2527.8,1.1123]
[1730478899557,3.9553,2528.3,2527.8,1.1123]
[1730478899724,3.95513,2528.4,2527.9,3.95572]
[1730478900320,3.95524,2528.3,2527.9,3.95572]
[1730478900515,3.95546,2528.2,2527.8,3.95598]
[1730478900719,0.5910948,2528.6,2527.8,3.95591]
[1730478900720,1.1111,2528.6,2527.8,3.95591]
[1730478901080,1.1111,2529.2,2528.3,3.9551]
[1730478901399,1.1111,2529.2,2528.2,3.95531]
[1730478901400,3.95462,2528.7,2528.2,3.95531]
[1730478901595,3.95411,2529.1,2528.3,3.95522]
[1730478901796,1.1111,2529.2,2528.8,3.95442]
[1730478902097,3.95363,2529.4,2528.9,0.07908428]
[1730478902298,3.95363,2529.4,2528.9,3.95416]
[1730478902602,1.1583,2529.5,2529.0,3.95411]
[1730478902798,1.1583,2529.5,2529.1,3.95389]
[1730478903010,1.1583,2529.5,2528.3,3.95522]
[1730478903011,3.95456,2528.8,2528.3,3.95522]
[1730478903160,1.0715,2529.0,2527.5,1.19510913]
[1730478903161,3.95505,2528.5,2528.0,3.95567]
[1730478903505,3.95508,2528.4,2528.0,3.95567]
[1730478903660,3.95488,2528.6,2528.0,7.91123]
[1730478903861,3.95488,2528.6,2527.9,1.1025]
[1730478903862,3.95451,2528.8,2528.3,3.95515]
[1730478904060,3.95502,2528.5,2528.0,3.9556]
[1730478904605,3.95502,2528.5,2528.1,3.95545]
[1730478905015,3.9547,2528.7,2528.1,3.95545]
[1730478905231,3.95482,2528.6,2528.1,3.95545]
[1730478905594,7.90971,2528.6,2528.1,3.95545]
[1730478906326,3.95482,2528.6,2527.9,5.05821]
[1730478906542,1.23110623,2528.8,2527.9,5.05821]
[1730478906543,3.95531,2528.3,2527.9,5.05821]
[1730478906832,3.95555,2528.1,2527.7,3.95602]
[1730478907035,3.95538,2528.2,2527.7,3.95602]
[1730478907207,4.1479,2528.4,2528.0,3.95569]
[1730478907529,3.0,2528.4,2528.1,3.95546]
[1730478907702,3.0,2528.4,2528.0,3.95569]
[1730478907703,3.0,2528.4,2528.0,3.95567]
[1730478908312,6.95514,2528.4,2527.8,3.95588]
[1730478908526,6.95514,2528.4,2527.9,3.9558]
[1730478908829,3.95559,2528.1,2527.6,5.04353]
[1730478909030,3.95559,2528.1,2527.2,4.68791949]
[1730478909031,3.95587,2527.9,2527.5,3.95643]
[1730478909205,3.95602,2527.8,2527.3,5.12525]
[1730478909393,3.95587,2527.9,2527.4,3.95656]
[1730478909601,3.95572,2528.0,2527.5,3.95641]
[1730478909927,3.9558,2528.0,2527.6,3.95628]
[1730478910131,5.06358,2528.1,2527.6,3.95624]